Cogmind - Beta 14 @@@ ROGUE MODE // 2024.10.27 @ 15:20:46 Player: Darsidian Result: Destroyed by L-41 Fighter with Axe Performance ------------- Evolutions (4) 2000 Regions Visited (11) 2200 Robots Destroyed (114) 570 Value Destroyed (3506) 3506 Prototype IDs (26) 520 Alien Tech Used (0) 0 Bonus (3474) 3474 TOTAL SCORE: 12270 Bonus ------- High Alert Combat Kills 206 Follower Combat Kills 368 Entered Garrisons 600 Used RIF Installer 2000 Aligned with FarCom 300 Cogmind --------- Core Integrity 0/850 Matter 255/300 Energy 150/160 System Corruption 2% Temperature Cool (0) Movement Hovering (56) Location -6/Garrison Parts ------- > --- POWER (2) -------- Light Nuclear Core > --- PROPULSION (4) --- Gravmag Array Gravmag Array > --- UTILITY (7) ------ Medium Storage Unit Advanced Melee Analysis Suite Improved Target Analyzer Relay Coupler [NC] (16) Relay Coupler [Grunt] (3) > --- WEAPON (2) ------- Heavy Mace Longsword +1 > --- INVENTORY (10) --- Light Ion Engine Gravmag System Improved Gravmag System Improved Signal Interpreter Shield Generator Force Field High-powered Shock Rifle High-powered Shock Rifle Proton Missile Launcher Remote Datajack Peak State ------------ > --- POWER ------------ Light Nuclear Core Light Fission Core > --- PROPULSION ------- Wheel Improved Hover Unit Gravmag System Improved Gravmag System > --- UTILITY ---------- Medium Storage Unit Advanced Melee Analysis Suite Advanced Melee Analysis Suite Improved Target Analyzer Improved Transmission Jammer Relay Coupler [NC] Relay Coupler [Sentry] > --- WEAPON ----------- Improved Spread Laser Longsword +1 > --- INVENTORY -------- Light Ion Engine Improved Signal Interpreter Transmission Jammer ECM Suite Force Field Relay Coupler [Grunt] Relay Coupler [Behemoth] Plasma Rifle Missile Launcher Heavy Mace [Rating: 63] Favorites ----------- Power Reinforced Fission Core Engine Light Ion Engine Power Core Reinforced Fission Core Propulsion Wheel Wheel Wheel Hover Unit Gravmag Array Utility Improved Transmission Jammer Device Improved Transmission Jammer Storage Medium Storage Unit Processor Advanced Melee Analysis Suite Hackware Relay Coupler [NC] Protection Hardened Medium Armor Plating Weapon Longsword +1 Energy Gun Heavy EM Pulse Gun Energy Cannon Beam Cannon Ballistic Gun Gauss Rifle Launcher Mini Grenade Launcher Special Weapon Remote Datajack Impact Weapon Maul Slashing Weapon Longsword +1 Special Melee Weapon Improved Datajack Build | -11 -10 -10 -10 -9 -8 -8 -7 -6 -6 -6 -6 ------- Run | Yrd Mat Min Exi Min Mat Gar Fac Fac Gar Fac Gar Slots Evolved 8 | . . . . . 4 . 2 2 . . . Power 1 | . . . . . . . 1 . . . . Propulsion 2 | . . . . . 1 . . 1 . . . Utility 5 | . . . . . 3 . 1 1 . . . Weapon . | . . . . . . . . . . . . Parts Attached 201 | 7 13 3 2 4 7 18 20 15 50 59 3 Power 15 | 1 . 1 . . . 1 2 . . 10 . Engine 7 | 1 . 1 . . . . 1 . . 4 . Core 8 | . . . . . . 1 1 . . 6 . Reactor . | . . . . . . . . . . . . Propulsion 48 | 2 2 . . 1 2 1 6 4 15 15 . Treads . | . . . . . . . . . . . . Leg . | . . . . . . . . . . . . Wheel 42 | 2 2 . . 1 2 1 5 4 15 10 . Hover 6 | . . . . . . . 1 . . 5 . Flight . | . . . . . . . . . . . . Utility 49 | 2 2 2 1 . 4 4 6 5 11 12 . Device 19 | 1 . 1 . . 2 3 1 5 1 5 . Storage 5 | 1 . . 1 . . . . . 2 1 . Processor 9 | . 1 1 . . 1 . 1 . 2 3 . Hackware 10 | . 1 . . . . . 1 . 5 3 . Protection 6 | . . . . . 1 1 3 . 1 . . Artifact . | . . . . . . . . . . . . Weapon 89 | 2 9 . 1 3 1 12 6 6 24 22 3 Energy Gun 13 | 2 5 . . 1 . . . . . 5 . Energy Cannon 1 | . . . . 1 . . . . . . . Ballistic Gun 9 | . . . . 1 . . . . 3 5 . Ballistic Cannon . | . . . . . . . . . . . . Launcher 21 | . 4 . . . . 6 . 1 7 2 1 Special Weapon 10 | . . . . . . . 2 . 4 4 . Impact Weapon 8 | . . . . . 1 3 2 . . 1 1 Slashing Weapon 25 | . . . 1 . . 3 2 3 10 5 1 Piercing Weapon . | . . . . . . . . . . . . Special Melee Weapon 2 | . . . . . . . . 2 . . . Unidentified Prototypes 3 | . . 1 . . . . 1 . . 1 . Parts Lost 30 | . 2 . . . . 5 . . 4 16 3 Power 6 | . . . . . . . . . . 5 1 Propulsion 10 | . 1 . . . . 1 . . 2 6 . Utility 10 | . . . . . . 4 . . 1 3 2 Weapon 4 | . 1 . . . . . . . 1 2 . Highest Loss Streak 10 | . 1 . . . . 2 . . 1 10 3 To Critical Strikes . | . . . . . . . . . . . . Average Slot Usage (%) 95 | . 97 100 100 99 81 88 99 99 98 90 83 Engine 5 | . 14 14 14 14 9 8 6 . . 3 . Core 7 | . . . . . . . 7 13 13 7 12 Wheel 23 | . 26 28 28 28 22 24 22 26 25 15 . Hover 1 | . . . . . . . . . . 6 13 Device 14 | . . 11 . . 6 18 22 23 20 11 10 Storage 8 | . 14 14 14 14 9 9 7 6 6 6 6 Processor 8 | . 7 2 14 14 11 6 . 5 6 13 13 Hackware 5 | . 5 . . . . . 6 2 3 11 13 Protection 3 | . . . . . 4 4 6 6 6 . . Energy Gun 3 | . 25 28 21 7 . . . . . . . Impact Weapon 1 | . . . . . 9 6 3 . . . . Slashing Weapon 8 | . . . 6 14 9 8 10 12 9 5 4 Peak Build Rating 63 | 9 11 16 16 16 28 34 47 52 61 63 63 Average Rating 41 | 4 9 14 12 15 22 26 41 49 55 54 60 On Entrance 27 | . 9 11 10 16 15 28 33 47 46 56 62 Naked Turns . | . . . . . . . . . . . . Heaviest Build 94 | 12 14 22 19 19 31 45 60 67 94 87 35 Greatest Support 56 | 26 26 26 26 26 42 42 36 46 56 54 40 Greatest Overweight (x) 3 | . 1 . . . . 1 1 1 2 3 . Average Overweight (x) . | . . . . . . . 1 1 1 . . Largest Inventory Capacity 20 | 8 8 8 10 10 10 10 10 10 20 20 10 Average Capacity 13 | 5 8 8 8 10 10 10 10 10 19 16 10 Most Carried 20 | 2 8 8 8 10 10 10 10 10 20 16 10 Average Carried 9 | . 5 8 8 9 8 7 8 7 12 11 9 Final Capacity 20 | 8 8 8 10 10 10 10 10 10 20 10 10 Final Carried 16 | 2 8 8 8 10 7 8 10 8 16 8 10 Class Distribution -------------------- 46% | Scavenger-Mutant 17% | Scavenger-Gladiator 14% | Mutant 12% | Infiltrator-Mutant 4% | Bothacker-Gladiator 4% | Bothacker-Mutant Dominant Class ---------------- Mutant | -10/Materials Mutant | -10/Mines Scavenger-Mutant | -10/Exiles Mutant | -9/Mines Scavenger-Mutant | -8/Materials Scavenger-Gladiator | -8/Garrison Infiltrator-Mutant | -7/Factory Scavenger-Mutant | -6/Factory Scavenger-Mutant | -6/Garrison Scavenger-Mutant | -6/Factory Infiltrator-Mutant | -6/Garrison Resources | -11 -10 -10 -10 -9 -8 -8 -7 -6 -6 -6 -6 ----------- Run | Yrd Mat Min Exi Min Mat Gar Fac Fac Gar Fac Gar Matter Collected 3039 | 262 175 27 . 106 25 151 406 173 796 918 . Remotely . | . . . . . . . . . . . . Salvage Created 4336 | 76 396 27 . 112 25 391 479 540 1075 1148 67 Parts 212 | 4 21 4 . 9 5 17 29 31 34 56 2 Haulers Intercepted 3 | . 2 . . . . . . . . 1 . Recyclers Shooed 7 | 1 2 . . . . . 1 1 . 2 . Parts Field Recycled . | . . . . . . . . . . . . Retrieved Matter . | . . . . . . . . . . . . Parts Self-Destructed . | . . . . . . . . . . . . Prevented . | . . . . . . . . . . . . Kills | -11 -10 -10 -10 -9 -8 -8 -7 -6 -6 -6 -6 ------- Run | Yrd Mat Min Exi Min Mat Gar Fac Fac Gar Fac Gar Combat Hostiles Destroyed 65 | . 9 3 . 1 . 15 1 5 24 6 1 Melee 25 | . . . . 1 . 4 1 5 7 6 1 Guns 5 | . 4 1 . . . . . . . . . AOE 34 | . 5 2 . . . 10 . . 17 . . Classes Destroyed 14 | 2 7 . . 1 . 2 1 . . 1 . Worker 12 | . 2 . . . . . 3 . . 7 . Builder 11 | . 1 . . 1 1 . 3 2 . 3 . Tunneler 6 | 1 . . . 1 . . 2 . . 2 . Hauler 3 | . 2 . . . . . . . . 1 . Recycler 12 | 1 1 . . 1 . . 3 2 . 4 . Operator 1 | . 1 . . . . . . . . . . Watcher 5 | . 2 . . . . . 1 1 . 1 . Swarmer 28 | . 3 3 . . . 4 . 1 17 . . Cutter 3 | . . . . . . 3 . . . . . Grunt 18 | . 6 . . . . 3 . 2 5 2 . Sentry 10 | . . . . . . 5 . 1 2 1 1 Hunter 1 | . . . . . . . . . . 1 . Programmer 4 | . . . . . . . 1 1 . 2 . Assembled 1 | . . . . 1 . . . . . . . Best Kill Streak 10 | 2 7 6 . 1 1 10 4 4 4 5 1 Combat Bots Only 10 | . 3 4 . 1 . 10 1 3 4 2 1 Max Kills in Single Turn 4 | 1 3 2 . 1 1 3 1 1 4 1 1 Gunslinging . | . . . . . . . . . . . . Exploded 4 | . 2 2 . . . 3 . . 4 . . Melee 1 | . . . . 1 . 1 1 1 1 1 1 Uniques/NPCs Destroyed . | . . . . . . . . . . . . Combat | -11 -10 -10 -10 -9 -8 -8 -7 -6 -6 -6 -6 -------- Run | Yrd Mat Min Exi Min Mat Gar Fac Fac Gar Fac Gar Hostile Shots Fired 383 | . 33 2 . 1 . 31 3 33 139 125 16 Missed 113 | . 9 . . . . 12 1 19 39 29 4 Damage Taken 4309 | . 341 42 . 20 . 418 22 129 1090 2057 190 Core 1081 | . 113 13 . . . 92 . . 174 647 42 Absorbed by Shields 575 | . . . . . . 5 8 50 417 42 53 Core Remaining (%) 83 | 100 . . . 49 . 83 100 . . . . Volleys Fired 152 | 6 40 2 . 1 . 8 1 1 39 50 4 Largest 2 | 2 2 2 . 1 . 2 1 1 2 2 1 Hottest 103 | 90 90 90 . 45 . 60 7 36 59 103 39 Shots Fired 240 | 12 68 4 . 1 . 16 1 1 47 86 4 Gun 161 | 12 59 4 . 1 . . . . 13 72 . Cannon . | . . . . . . . . . . . . Launcher 48 | . 9 . . . . 16 . 1 19 2 1 Special 31 | . . . . . . . 1 . 15 12 3 Kinetic 79 | . . . . . . . . . 13 66 . Thermal 60 | 12 43 . . . . . . . . 5 . Explosive 47 | . 9 . . . . 16 . 1 19 2 . Electromagnetic 23 | . 16 4 . 1 . . . . . 1 1 Robot Hit Streak 17 | 5 9 6 . . . 9 4 . 17 12 3 Robot Miss Streak 5 | 3 3 . . . . 1 . . 2 5 1 Penetration Max 1 | . . . . . . . . . . 1 . Secondary Targets . | . . . . . . . . . . . . Shots Hit Robots 303 | 7 39 3 . 4 1 14 22 22 85 99 7 Core Hits 161 | 3 30 3 . 2 . 27 8 8 48 28 4 Critical Kills 2 | . . . . . . . . . . 2 . Critical Parts Destroyed 2 | . . . . . . 1 . . . 1 . Critical Strikes 20 | . 2 . . . . 1 . . 12 4 1 Burn 2 | . 2 . . . . . . . . . . Destroy 3 | . . . . . . . . . . 3 . Smash 1 | . . . . . . 1 . . . . . Sever 14 | . . . . . . . . . 12 1 1 Melee Attacks 271 | . . . 2 16 2 34 31 41 86 55 4 Impact 8 | . . . . . . 4 1 . . 2 1 Slashing 254 | . . . 2 16 2 30 30 32 86 53 3 Piercing . | . . . . . . . . . . . . Sneak Attacks 42 | . . . . 3 1 . 12 10 4 12 . Combat Hostiles 5 | . . . . . . . . . 4 1 . Follow-up Attacks 9 | . . . . . . 1 . 1 4 2 1 Damage Inflicted 16015 | 83 1206 134 . 291 89 1391 1601 925 6255 3809 231 Guns 1641 | 83 481 25 . . . . . . 75 977 . Cannons . | . . . . . . . . . . . . Explosions 4328 | . 725 109 . . . 978 . 65 2201 170 80 Melee 10046 | . . . . 291 89 413 1601 860 3979 2662 151 Ramming . | . . . . . . . . . . . . Kinetic 947 | . . . . . . . . . 75 872 . Thermal 596 | 83 317 109 . . . . . . . 87 . Explosive 4108 | . 694 . . . . 978 . 65 2201 170 . Electromagnetic 318 | . 195 25 . . . . . . . 18 80 Impact 163 | . . . . . . 21 . . . 99 43 Slashing 9883 | . . . . 291 89 392 1601 860 3979 2563 108 Piercing . | . . . . . . . . . . . . Highest Corruption 2 | . . . . . . . . . . 2 2 Average Corruption 1 | . . . . . . . . . . 1 2 Corruption Purged . | . . . . . . . . . . . . Corruption Blocked . | . . . . . . . . . . . . Effects 4 | . . . . . . . . . . 2 2 Message Errors 2 | . . . . . . . . . . 1 1 Energy Discharges 1 | . . . . . . . . . . . 1 Data Loss (minor) 1 | . . . . . . . . . . 1 . Overload Shots . | . . . . . . . . . . . . Overflow Damage 1890 | . 4 . . 99 59 137 386 196 488 521 . Projectiles . | . . . . . . . . . . . . Explosions 133 | . 4 . . . . 38 . . 91 . . Melee 1757 | . . . . 99 59 99 386 196 397 521 . Knockbacks . | . . . . . . . . . . . . Impact . | . . . . . . . . . . . . Kinetic . | . . . . . . . . . . . . Secondary . | . . . . . . . . . . . . Self-Inflicted Damage 319 | . 57 26 . . . 77 . . 149 . 10 Shots 13 | . 3 1 . . . 2 . . 6 . 1 Rammed . | . . . . . . . . . . . . Targets Rammed . | . . . . . . . . . . . . Kicked . | . . . . . . . . . . . . Crushed . | . . . . . . . . . . . . Highest Temperature 487 | 120 487 72 . 4 . 12 . 10 115 124 2 Average Temperature 105 | 58 175 42 . 3 . 6 . 7 32 51 1 Received Heat Transfer 953 | . 183 . . . . 129 . 40 320 260 21 Effects 4 | . 4 . . . . . . . . . . Shutdowns 1 | . 1 . . . . . . . . . . Energy Bleed 1 | . 1 . . . . . . . . . . Interference 1 | . 1 . . . . . . . . . . Damage (minor) 1 | . 1 . . . . . . . . . . Siege Activations . | . . . . . . . . . . . . Robots Corrupted 1 | . . . . . . 1 . . . . . Combat Hostiles 1 | . . . . . . 1 . . . . . Parts Fried 2 | . 2 . . . . . . . . . . Impact Corruptions 2 | . . . . . . 1 . . . 1 . Robots Melted . | . . . . . . . . . . . . Combat Hostiles . | . . . . . . . . . . . . Parts Melted 8 | 1 3 . . . . . . . . 2 2 Heat Transferred 1489 | 223 966 100 . . . . . . . 200 . Parts Sabotaged . | . . . . . . . . . . . . Parts Stolen . | . . . . . . . . . . . . Parts Stripped . | . . . . . . . . . . . . Power Chain Reactions 2 | . 1 1 . . . . . . . . . Alert | -11 -10 -10 -10 -9 -8 -8 -7 -6 -6 -6 -6 ------- Run | Yrd Mat Min Exi Min Mat Gar Fac Fac Gar Fac Gar Peak Influence 1140 | 10 339 156 . 10 46 586 523 192 1140 672 219 Initial 598 | . 6 67 . . 3 31 307 114 30 598 214 Average 338 | 4 190 155 . 2 10 339 354 104 613 417 211 Maximum Alert Level 4 | . 1 . . . . 2 2 . 4 2 1 Low Security (%) 37 | 100 55 100 . 100 100 35 12 100 15 . 13 Level 1 27 | . 44 . . . . 17 57 . 7 55 86 Level 2 27 | . . . . . . 47 30 . 40 44 . Level 3 6 | . . . . . . . . . 30 . . Level 4 1 | . . . . . . . . . 6 . . Level 5 . | . . . . . . . . . . . . High Security . | . . . . . . . . . . . . Max Security . | . . . . . . . . . . . . Squads Dispatched 7 | . 1 . . . . . 2 1 . 3 . Investigation 1 | . . . . . . . . . . 1 . Extermination 5 | . . . . . . . 2 1 . 2 . Reinforcement 1 | . 1 . . . . . . . . . . Assault . | . . . . . . . . . . . . Garrison . | . . . . . . . . . . . . Intercept . | . . . . . . . . . . . . Searches Triggered . | . . . . . . . . . . . . Construction Impeded . | . . . . . . . . . . . . Haulers Reinforced . | . . . . . . . . . . . . Active Scanning Responses . | . . . . . . . . . . . . Cargo Convoy Interrupts . | . . . . . . . . . . . . Stealth | -11 -10 -10 -10 -9 -8 -8 -7 -6 -6 -6 -6 --------- Run | Yrd Mat Min Exi Min Mat Gar Fac Fac Gar Fac Gar Distress Signals 3 | . 2 . . 1 . . . . . . . Communications Jammed 3 | . . . . . . . . 1 . 2 . Distress Signals 2 | . . . . . . . . 1 . 1 . Times Spotted 97 | . 15 1 . 1 1 14 2 11 34 13 5 Peak Tracking Total 6 | . 4 1 . . 1 6 1 3 5 3 4 Tactical Retreats 10 | . . . . . . 2 . . 8 . . Traps | -11 -10 -10 -10 -9 -8 -8 -7 -6 -6 -6 -6 ------- Run | Yrd Mat Min Exi Min Mat Gar Fac Fac Gar Fac Gar Traps Triggered 12 | . . . . . . 4 . 1 3 2 2 Indirectly . | . . . . . . . . . . . . Trap Hack Attempts . | . . . . . . . . . . . . Triggered . | . . . . . . . . . . . . Disarmed . | . . . . . . . . . . . . Reprogrammed . | . . . . . . . . . . . . Reused . | . . . . . . . . . . . . Traps Extracted . | . . . . . . . . . . . . Installed . | . . . . . . . . . . . . Triggered . | . . . . . . . . . . . . Machines | -11 -10 -10 -10 -9 -8 -8 -7 -6 -6 -6 -6 ---------- Run | Yrd Mat Min Exi Min Mat Gar Fac Fac Gar Fac Gar Machines Disabled 12 | . 2 . . . . 4 . 1 2 3 . Max in Single Turn 1 | . 1 . . . . 1 . . 1 . . Garrison Relay 4 | . . . . . . 2 . . 2 . . Machines Repaired . | . . . . . . . . . . . . Machines Dismantled . | . . . . . . . . . . . . Machines Sabotaged . | . . . . . . . . . . . . Overloaded Fab Kills . | . . . . . . . . . . . . Hacking | -11 -10 -10 -10 -9 -8 -8 -7 -6 -6 -6 -6 --------- Run | Yrd Mat Min Exi Min Mat Gar Fac Fac Gar Fac Gar Machines Accessed 23 | . 3 1 3 . 2 2 2 3 2 5 . Terminals 13 | . 3 . . . 1 2 1 2 2 2 . Fabricators . | . . . . . . . . . . . . Repair Stations . | . . . . . . . . . . . . Recycling Units 2 | . . . . . . . 1 . . 1 . Scanalyzers 1 | . . . . . . . . . . 1 . Garrison Access 3 | . . . . . 1 . . 1 . 1 . Total Hacks 46 | . 6 1 11 . 5 2 2 5 2 12 . Successful 29 | . 2 1 11 . 3 1 2 2 . 7 . Failed 17 | . 4 . . . 2 1 . 3 2 5 . Catastrophic 6 | . 2 . . . . 1 . 2 1 . . Database Lockouts . | . . . . . . . . . . . . Manual 20 | . 5 . 2 . 3 1 1 3 1 4 . Terminals 24 | . 6 . . . 4 2 1 3 2 6 . Fabricators . | . . . . . . . . . . . . Repair Stations . | . . . . . . . . . . . . Recycling Units 3 | . . . . . . . 1 . . 2 . Scanalyzers 3 | . . . . . . . . . . 3 . Garrison Access 4 | . . . . . 1 . . 2 . 1 . Terminal Hacks 16 | . 1 1 11 . 1 1 . . . 1 . Record 11 | . . . 10 . 1 . . . . . . Open Door 1 | . . 1 . . . . . . . . . Dispatch Records 1 | . . . . . . . . . . 1 . Zone Layout 1 | . 1 . . . . . . . . . . Garrison Registry 1 | . . . . . . 1 . . . . . Derelict Proto ID Bank 1 | . . . 1 . . . . . . . . Fabricator Hacks . | . . . . . . . . . . . . Repair Station Hacks . | . . . . . . . . . . . . Recycling Unit Hacks 1 | . . . . . . . 1 . . . . Report Inventory 1 | . . . . . . . 1 . . . . Scanalyzer 3 | . . . . . . . . . . 3 . Insert Component 1 | . . . . . . . . . . 1 . Analyze 2 | . . . . . . . . . . 2 . Garrison Access Hacks 4 | . . . . . 1 . . 2 . 1 . Unlock Access 3 | . . . . . 1 . . 1 . 1 . Coupler Status 1 | . . . . . . . . 1 . . . Unauthorized Hacks 5 | . 1 . . . 1 . 1 . . 2 . Terminals 5 | . 1 . . . 1 . 1 . . 2 . Botnet 5 | . 1 . . . 1 . 1 . . 2 . Fabricators . | . . . . . . . . . . . . Repair Stations . | . . . . . . . . . . . . Recycling Units . | . . . . . . . . . . . . Scanalyzers . | . . . . . . . . . . . . Garrison Access . | . . . . . . . . . . . . Data Cores Recovered 1 | . 1 . . . . . . . . . . Used . | . . . . . . . . . . . . Hacking Detections 16 | . 3 . . . 1 2 2 3 2 3 . Full Trace Events 1 | . . . . . . . . . . 1 . Feedback Events . | . . . . . . . . . . . . Feedback Blocked . | . . . . . . . . . . . . Robot Schematics Acquired . | . . . . . . . . . . . . Robots Built . | . . . . . . . . . . . . Authchips . | . . . . . . . . . . . . Time . | . . . . . . . . . . . . Total Robot Build Rating . | . . . . . . . . . . . . Part Schematics Acquired 1 | . . . . . . . . . . 1 . Parts Built . | . . . . . . . . . . . . Authchips . | . . . . . . . . . . . . Time . | . . . . . . . . . . . . Total Part Build Rating . | . . . . . . . . . . . . Parts Repaired . | . . . . . . . . . . . . Time . | . . . . . . . . . . . . Parts Recycled . | . . . . . . . . . . . . Recycled Matter . | . . . . . . . . . . . . Retrieved Matter . | . . . . . . . . . . . . Retrieved Components . | . . . . . . . . . . . . Parts Scanalyzed 1 | . . . . . . . . . . 1 . Part Schematics Acquired 1 | . . . . . . . . . . 1 . Parts Damaged 1 | . . . . . . . . . . 1 . Bothacking | -11 -10 -10 -10 -9 -8 -8 -7 -6 -6 -6 -6 ------------ Run | Yrd Mat Min Exi Min Mat Gar Fac Fac Gar Fac Gar Used RIF Installer 4 | . . . . . . 2 . . 1 . 1 Command Fork 1 | . . . . . . . . . 1 . . Robot Detection 1 | . . . . . . 1 . . . . . Structural Interface 1 | . . . . . . . . . . . 1 Robots Hacked 14 | . . . . . . . 1 2 6 3 2 Non-combat 4 | . . . . . . . 1 2 . 1 . Combat 10 | . . . . . . . . . 6 2 2 Robot Hacks Applied 18 | . . . . . . . 1 4 6 5 2 parse_system 2 | . . . . . . . . 1 . 1 . find_recycling 1 | . . . . . . . . 1 . . . map_route 2 | . . . . . . . 1 1 . . . find_shortcuts 1 | . . . . . . . . . 1 . . spike_heat 1 | . . . . . . . . . . 1 . reboot_system 1 | . . . . . . . . . 1 . . go_dormant 1 | . . . . . . . . . . 1 . streamctrl_high 1 | . . . . . . . . 1 . . . formatsys_high 8 | . . . . . . . . . 4 2 2 Relay Couplers Released 18 | . . . . . . 8 . 1 9 . . Machine Destruction 18 | . . . . . . 8 . 1 9 . . Attached 8 | . . . . . . . 1 . 4 3 . Fabnet Peak Effective % . | . . . . . . . . . . . . Robots Rewired . | . . . . . . . . . . . . Allies Hacked . | . . . . . . . . . . . . Hacks Repelled . | . . . . . . . . . . . . Allies | -11 -10 -10 -10 -9 -8 -8 -7 -6 -6 -6 -6 -------- Run | Yrd Mat Min Exi Min Mat Gar Fac Fac Gar Fac Gar Total Allies 23 | . . . . 1 . 1 . 13 4 2 2 Largest Group 4 | . . . . 1 1 1 . 4 2 2 2 Highest-Rated Group 113 | . . . . 31 31 85 . 113 64 64 54 Highest-Rated Ally 85 | . . . . 31 31 85 . 31 32 41 29 Total Orders 5 | . . 1 . . . . . 3 1 . . STAY 1 | . . . . . . . . . 1 . . FOLLOW 1 | . . . . . . . . 1 . . . EXPLORE 1 | . . . . . . . . 1 . . . RETURN 2 | . . 1 . . . . . 1 . . . Ally Attacks 58 | . . . . . 3 11 . 28 7 4 5 Total Damage 1342 | . . . . . 40 133 . 631 237 223 78 Kills 12 | . . . . . 1 1 . 4 3 3 . Allies Corrupted . | . . . . . . . . . . . . Allies Melted . | . . . . . . . . . . . . Intel | -11 -10 -10 -10 -9 -8 -8 -7 -6 -6 -6 -6 ------- Run | Yrd Mat Min Exi Min Mat Gar Fac Fac Gar Fac Gar Robot Analysis Total . | . . . . . . . . . . . . Derelict Logs Recovered 2 | . . 1 . 1 . . . . . . . Drone Launches 14 | . . 1 . . . 10 . 3 . . . Drone Recoveries 11 | . . 1 . . . 9 . 1 . . . Exploration | -11 -10 -10 -10 -9 -8 -8 -7 -6 -6 -6 -6 ------------- Run | Yrd Mat Min Exi Min Mat Gar Fac Fac Gar Fac Gar Turns Passed 7933 | 71 462 153 325 653 77 650 1002 999 1640 1795 106 Spaces Moved 5942 | 48 357 158 352 502 61 514 834 475 1076 1431 134 Core 6 | 6 . . . . . . . . . . . Treads . | . . . . . . . . . . . . Legs . | . . . . . . . . . . . . Wheels 5119 | 42 357 158 352 502 61 514 834 475 1076 748 . Hover 817 | . . . . . . . . . . 683 134 Flight . | . . . . . . . . . . . . Fastest Speed 50 | 50 80 90 90 90 86 86 95 100 100 52 56 Average Speed 92 | 84 89 90 90 90 90 91 99 100 105 80 56 Slowest Speed 175 | 90 95 90 90 90 93 105 105 100 123 175 56 Overloaded Moves . | . . . . . . . . . . . . Propulsion Burnouts . | . . . . . . . . . . . . Robots Hopped . | . . . . . . . . . . . . Cave-ins Triggered . | . . . . . . . . . . . . Exploration Rate (%) 36 | 3 50 29 65 90 5 65 16 16 63 19 18 Regions Visited 11 Branch Regions 3 Pre-discovered Areas 1 | . . . . 1 . . . . . . . Known Exits Taken 7 | . . 1 1 1 1 . 1 1 . 1 . Unknown Exits Taken 2 | 1 1 . . . . . . . . . . Scrap Searched 2 | . . . . 2 . . . . . . . Spaces Dug 42 | . . . 1 1 1 11 5 9 2 12 . Terrain Destroyed 340 | . 54 4 1 1 1 66 5 23 164 21 . Melee 42 | . . . 1 1 1 11 5 9 2 12 . Projectile . | . . . . . . . . . . . . AOE 298 | . 54 4 . . . 55 . 14 162 9 . Terrain Rammed . | . . . . . . . . . . . . Walls Destroyed . | . . . . . . . . . . . . Machines Disabled . | . . . . . . . . . . . . Actions | -11 -10 -10 -10 -9 -8 -8 -7 -6 -6 -6 -6 --------- Run | Yrd Mat Min Exi Min Mat Gar Fac Fac Gar Fac Gar Total 7884 | 62 430 165 358 685 80 639 978 968 1437 1923 159 Wait 1124 | . 3 1 1 159 7 27 66 425 157 275 3 Move 5933 | 47 356 157 351 501 61 513 833 475 1075 1430 134 Hop . | . . . . . . . . . . . . Pick Up 84 | 2 11 . . 1 1 6 14 7 16 24 2 Fast Attach 49 | 7 2 1 1 3 2 3 4 . 4 22 . Attach 31 | . 4 . . . 3 2 3 2 5 12 . Detach 10 | . 3 . . . . 1 . . . 6 . Swap 121 | . 7 2 1 1 2 13 13 13 41 25 3 Drop 72 | . 4 2 2 3 2 4 15 6 11 23 . Fire 152 | 6 40 2 . 1 . 8 1 1 39 50 4 Melee 254 | . . . 2 16 2 30 29 39 80 53 3 Ram . | . . . . . . . . . . . . Kick . | . . . . . . . . . . . . Crush . | . . . . . . . . . . . . Escape Stasis 48 | . . . . . . 32 . . 8 . 8 Rewire 6 | . . . . . . . . . 1 3 2 Trap . | . . . . . . . . . . . . Miscellaneous . | . . . . . . . . . . . . Route ------- -11/Scrapyard -10/Materials -10/Mines -10/Exiles (discovered 2 exits: *Min x2) -9/Mines -8/Materials -8/Garrison (discovered 3 exits: *Fac x3) -7/Factory -6/Factory (discovered 2 exits: [*Low] / Gar) -6/Garrison (discovered 3 exits: *Fac x3) -6/Factory -6/Garrison History --------- Turn | Location | Event 13 | -11/Scrapyard | Discovered new exit (range 15) 72 | -11/Scrapyard | Entered Materials 168 | -10/Materials | Discovered new exit (range 9) 303 | -10/Materials | Build established: Mutant 534 | -10/Materials | Entered Mines 535 | -10/Mines | Core integrity fell below 50% 563 | -10/Mines | Found the Drone Emporium 565 | -10/Mines | Learned Materials terminal intel 567 | -10/Mines | Found Prototype Device 567 | -10/Mines | Identified Splice Drone Bay 681 | -10/Mines | Deemed a non-threat by the Exiles lab entrance 682 | -10/Mines | Discovered new exit (range 5) 686 | -10/Mines | Identified exit to Exiles 687 | -10/Mines | Entered Exiles 701 | -10/Exiles | Discovered new exit (range 15) 713 | -10/Exiles | Identified exit to Mines 734 | -10/Exiles | Met 8R-AWN 752 | -10/Exiles | Met EX-HEX 788 | -10/Exiles | Met EX-BIN 801 | -10/Exiles | Aligned with FarCom system 802 | -10/Exiles | Given EX-Vault access code 857 | -10/Exiles | Opened EX-Vault 864 | -10/Exiles | Found Longsword +1 891 | -10/Exiles | Warned to stay clear of 0b10 Research branches 901 | -10/Exiles | Exiles lab attacked by MAIN.C 998 | -10/Exiles | Discovered exit to Mines (range 14) 1012 | -10/Exiles | Left Exiles lab with Longsword +1 1012 | -10/Exiles | Entered Mines 1276 | -9/Mines | Excavation squad dispatched 1276 | -9/Mines | A large section of the Mines collapsed 1478 | -9/Mines | Discovered new exit (range 3) 1479 | -9/Mines | Identified exit to Materials 1480 | -9/Mines | Received a Mining Laser from a helpful Derelict 1665 | -9/Mines | Entered Materials 1665 | -8/Materials | Accompanied by 1 ally 1665 | -8/Materials | Evolved 4 slots: Propulsion x1, Utility x3 1666 | -8/Materials | Loaded intel: 12 terminal locations 1696 | -8/Materials | Build established: Scavenger-Mutant 1742 | -8/Materials | Identified exit to Garrison 1742 | -8/Materials | Entered Garrison 1742 | -8/Garrison | Accompanied by 1 ally 1816 | -8/Garrison | Triggered checkpoint 1822 | -8/Garrison | Garrison Relay disabled 1957 | -8/Garrison | Triggered checkpoint 2039 | -8/Garrison | Destroyed 10 combat bots 2074 | -8/Garrison | Discovered new exit (range 58) 2074 | -8/Garrison | Discovered new exit (range 64) 2074 | -8/Garrison | Discovered new exit (range 18) 2082 | -8/Garrison | Garrison Relay disabled 2105 | -8/Garrison | Triggered checkpoint 2173 | -8/Garrison | Installed Relay Interface Framework 2191 | -8/Garrison | Triggered checkpoint 2244 | -8/Garrison | Expanded RIF knowledge: Robot Detection 2334 | -8/Garrison | Spotted B-75 Beast 2392 | -8/Garrison | Entered Factory 2392 | -7/Factory | Evolved 2 slots: Power x1, Utility x1 3099 | -7/Factory | Build established: Infiltrator-Mutant 3336 | -7/Factory | Discovered new exit (range 15) 3390 | -7/Factory | Identified exit to Factory 3394 | -7/Factory | Entered another Factory area 3394 | -6/Factory | Evolved 2 slots: Propulsion x1, Utility x1 4202 | -6/Factory | Build established: Scavenger-Mutant 4282 | -6/Factory | Discovered new exit (range 9) 4393 | -6/Factory | Identified exit to Garrison 4393 | -6/Factory | Entered Garrison 4455 | -6/Garrison | Triggered checkpoint 4472 | -6/Garrison | Garrison Relay disabled 4567 | -6/Garrison | Spotted B-90 Cyclops 4807 | -6/Garrison | Triggered checkpoint 4959 | -6/Garrison | Triggered checkpoint 5133 | -6/Garrison | Discovered new exit (range 8) 5286 | -6/Garrison | Build established: Scavenger-Gladiator 5401 | -6/Garrison | Triggered checkpoint 5456 | -6/Garrison | Garrison Relay disabled 5513 | -6/Garrison | Discovered new exit (range 15) 5663 | -6/Garrison | Build established: Scavenger-Mutant 5727 | -6/Garrison | Triggered checkpoint 5955 | -6/Garrison | Discovered new exit (range 14) 5965 | -6/Garrison | Expanded RIF knowledge: Command Fork 6033 | -6/Garrison | Entered Factory 6033 | -6/Factory | Accompanied by 2 allies 6356 | -6/Factory | Core integrity fell below 50% 6419 | -6/Factory | Lost 10 parts (3p4n1u2w) 6873 | -6/Factory | Core integrity fell below 20% 6912 | -6/Factory | Lost 5 parts (2p2n1u) 7825 | -6/Factory | Identified exit to Garrison 7828 | -6/Factory | Entered Garrison 7838 | -6/Garrison | Expanded RIF knowledge: Structural Interface 7865 | -6/Garrison | Spotted B-75 Beast 7869 | -6/Garrison | Build established: Infiltrator-Mutant 7906 | -6/Garrison | Triggered checkpoint 7934 | -6/Garrison | Destroyed by L-41 Fighter with Axe Last Messages --------------- Erasing system data. Installing primary routines, ETC: 6. 07917_ ECM Suite destroyed. 07917_ Transmission Jammer destroyed. 07918_ Reactivated Soldier 5a. 07920_ Jacked G-50 Soldier... >>formatsys_high Rerouting network defenses. Erasing system data. Installing primary routines, ETC: 6. 07921_ Reactivated Soldier 5b. 07921_ Y-54 Guardian suffers critical hit (Burn). 07922_ Soldier 5a Hvy. Laser severed. 07924_ Lgt. Fission Core destroyed. 07926_ Imp. Heat Sink melted. 07926_ Flak Gun melted. 07926_ Y-54 Guardian destroyed. 07929_ Soldier 5b destroyed. 07932_ Hvy. Mace follow-up attack on L-41 Fighter. 07934_ L-41 Fighter Imp. Deuterium Engine severed. Map ----- +----------------------------------------------------+ | ?????????????????????????????????????????????????? | | ?????????????????????????????????????????????????? | | ?????????????????????????????????????????????????? | | ?????????????????????????????????????????????????? | | ?????????????????????????????????????????????????? | | ?????????????????????????????????????????????????? | | ?????????????????????????????????????????????????? | | ?????????????????????????????????????????????????? | | ?????????????????????????????????????????????????? | | ?????????????????????????????????????????????????? | | ?????????????????????????????????????????????????? | | ?????????????????????????????????????????????????? | | ?????????????????????????????????????????????????? | | ?????????????????????????????????????????????????? | | ?????????????????????????????????????????????????? | | ?????????????????????????????????????????????????? | | ?????????????????????????????????????????????????? | | ??????????????????????????????????######?????????? | | ?????????????????????????????###### #?????????? | | ????????????????????????###??#"""## #??????#### | | ???????????????????????? #??#" "## #??????#[ # | | ????????????????????????# #??#" "#### #??????#[ # | | ????????????????????????# #??#" "#??# #??????#[ # | | ????????????????????????# #??# #??# #??????#[ # | | ????????????????????????# #??## ##??# #??????# # | | ?????????????????????####@##### ##### #??????# # | | ?????????????????????# =l=%= ######### # | | ?????????????????????#[##+#####+##### + # | | ?????????????????????# # #???# #???# #### | | ?????????????????????# ## #???# #???##+##### #??? | | ?????????????????????# ## ##### #????# #???# #??? | | ?????????????????????#"g #????# #???# #??? | | ?????????????????????"%##########????# #???# #??? | | ????????????????????? "#?????????????# #???# #??? | | ????????????????????? #?????????????# #???# #??? | | ?????????????????????# #?????????????# #???# #??? | | ?????????????????????# #?????????????# #???# ##"" | | ?????????????????????? ??????????????# #### | | ?????????????????????? ??????????????# + | | ?????????????????????? ??????????????###### | | ?????????????????????? ???????????????????? ## | | ?????????????????????? ???????????????????? #??? | | ??????????????????????#???????????????????? ?? | | ????????????????????????????????????????????? ? | | ????????????????????????????????????????????? | | ?????????????????????????????????????????????? | | ??????????????????????????????????????????????## | | ???????????????????????????????????????????????? | | ????????????????????????????????????????????????? | | ?????????????????????????????????????????????????? | +----------------------------------------------------+ Best States ------------- Heat Dissipation 37 Energy Generation 32 Energy Capacity 500 Matter Stores 300 Matter Capacity 300 Sight Range 18 Terrain Scan Range 16 Terrain Scan Density 10 ECM Strength 1 Jamming Range 14 Armor Coverage 225 Melee Speed Boost 20 Evasion (%) 54 Melee Accuracy 16 Target Analysis 9 Offensive Hacking 10 Defensive Hacking 10 Relay Coupler Types 2 Relay Coupler Value 58 Item Schematics ----------------- Imp. Transmission Jammer | -6/Factory | Scanalyzed Robot Schematics ------------------ None Fabricated ------------ Nothing Alien Tech Used ----------------- None Achievements -------------- None Challenges ------------ None Game ------ Seed AblativeLinearShearcannon Manual? 0 Play Time 03:10:56 Cumulative 101.4 hours Start 2024.10.27 @ 11:40:05 End 2024.10.27 @ 15:20:46 Sessions 1 Manual Loads 0 Difficulty Rogue Special Mode None Game No. 33 Rogue 33 Adventurer 0 Explorer 0 Win Type - Total 0 Types 0/0/0/0/0/0/0/0/0 Lore% 17 Gallery% 38 Achievement% 35 Wizard Run 0 Options --------- Layout 0 ASCII 0 Keyboard 0 Movement Mouse Keybinds 0 Fullscreen 1 Font 36/Smallcaps Map View 76x50 Zoom Use 0% Tactical HUD 1 Map Filters NONE Filters NONE Steam 1 RUN: f2c7d4f4-7084-4e56-9019-a4a160ff260e